[Event "Israeli Team-ch 2023"]
[Site "Petah Tikva"]
[Date "2023.02.03"]
[Round "5.3"]
[White "Erenberg, Ariel"]
[Black "Tifferet, Shaked"]
[Result "1-0"]
[ECO "D44"]
[WhiteElo "2504"]
[BlackElo "2226"]
[Annotator "TA"]
[PlyCount "75"]
[EventDate "2023.01.13"]
[EventCountry "ISR"]
[SourceTitle "playchess.com"]
[Source "ChessBase"]
[SourceQuality "1"]
[TimeControl "40/5400+30:1800+30"]

{[%evp 22,75,28,12,23,23,58,78,74,0,0,0,0,0,0,-34,12,0,0,6,114,113,249,247,215,177,202,97,315,317,390,357,589,551,673,700,789,779,820,822,822,822,820,584,3201,2425,2845,2568,29984,8744,29980,29981,29994,29995,29995,29996]} 1. Nf3 {[%emt 0:01:46]} d5 {[%emt 0:00:12]} 2. c4 {[%emt 0:00:49]} c6 {[%emt 0:00:19]} 3. d4 {[%emt 0:05:37]} Nf6 {[%emt 0:00:07]} 4. Nc3 {[%emt 0:01:31]} e6 {[%emt 0:00:11]} 5. Bg5 {[%emt 0:00:26]} dxc4 {[%emt 0:01:20]} 6. e4 {[%emt 0:01:27][%cal Be2e4,Be4e5][%mdl 32]} b5 {[%emt 0:00:09]} 7. e5 {[%emt 0:00:26]} h6 {[%emt 0:00:05]} 8. Bh4 {[%emt 0:00:12]} g5 {[%emt 0:00:07]} 9. Nxg5 {[%emt 0:00:55]} hxg5 {[%emt 0:00:03]} 10. Bxg5 {[%emt 0:00:06]} Nbd7 {[%emt 0:00:06]} 11. exf6 {[%emt 0:00:17]} Bb7 {[%emt 0:04:25]} 12. h4 {[%emt 0:01:09]} Qb6 {[%emt 0:12:03] was the old line (12...Nxf6). D44: Semi-Slav: Botvinnik System.} 13. Qc2 {[%emt 0:00:41]} O-O-O {[%emt 0:14:09]} 14. O-O-O $1 {[%emt 0:05:05] [#]} Bb4 $146 {[%emt 0:12:21] White is better.} ({Predecessor:} 14... Qa5 15. Kb1 Nb6 16. Be2 Nd5 17. Nxd5 cxd5 18. h5 Kb8 19. h6 Ka8 20. Bf4 Rc8 {1-0 Lalith,B (2550)-Ferriol,G (2070) Chiang Mai op 20th 2022 (9.4)}) 15. Ne4 {[%emt 0:22:04]} (15. a3 $16 Bxc3 16. Qxc3) 15... c5 $11 {[%emt 0:09:56]} 16. a3 {[%emt 0:00:25]} Bxa3 {[%emt 0:05:48]} 17. bxa3 {[%emt 0:01:48]} cxd4 {[%emt 0:00:02]} 18. f3 {[%emt 0:09:43][%cal Bf2f3,Bf3e4][%mdl 32]} Kb8 {[%emt 0:05:15]} (18... Bxe4 $15 {is more appropriate.} 19. fxe4 (19. Qxe4 Nc5 $17) 19... Nc5) 19. Kb1 {[%emt 0:03:41]} Rc8 {[%emt 0:06:15]} 20. h5 {[%emt 0:04:19]} b4 {[%emt 0:02:25]} (20... e5 $11) 21. axb4 $16 {[%emt 0:02:32]} (21. Bxc4 $2 Rxc4 22. Qb2 (22. Qxc4 bxa3+) 22... Ka8 $19) 21... a5 {[%emt 0:08:41]} (21... Ka8 $16 {is a better defense.} 22. Bd2 (22. Bxc4 Qxb4+ 23. Qb3 Rxc4 $19) 22... Bd5) 22. Qa4 $18 {[%emt 0:08:52][%cal Oa4a5]} (22. Bxc4 Qxb4+ 23. Qb2 Rxc4 $15) 22... Bxe4+ {[%emt 0:06:22]} 23. fxe4 {[%emt 0:00:01][%cal Oa4a5] Threatens to win with Qxa5!} c3 {[%emt 0:05:09] Hoping for ...c2+.} 24. Bd3 {[%emt 0:02:50]} (24. Qxd7 c2+ 25. Kc1 Qxb4 $11) (24. Kc2 d3+ 25. Kxd3 (25. Rxd3 Qf2+ 26. Kc1 Qb2+ 27. Kd1 c2+ 28. Ke1 c1=Q+ 29. Bxc1 Rxc1+ 30. Rd1 Rxd1+ 31. Qxd1 Qxb4+ 32. Qd2 Qxe4+ 33. Be2 Qxg2 $11) 25... c2 $11) (24. Ka2 $18 axb4 25. Qb5 (25. Qxd7 Qa5+ 26. Kb3 Qa3+ 27. Kc2 b3+ 28. Kd3 c2 $19)) 24... Rc5 $2 {[%emt 0:03:57]} (24... Qxb4+ $16 25. Qxb4+ axb4) 25. Bf4+ {[%emt 0:03:26]} (25. Qxd7 $2 Qxb4+ 26. Kc2 Qb2#) 25... e5 {[%emt 0:00:09] [#]} 26. Kc2 $1 {[%emt 0:00:14] And now Rb1 would win.} (26. Qxd7 $2 Qxb4+ 27. Kc2 Qb2#) 26... axb4 $2 {[%emt 0:03:06]} (26... Nxf6 $2 27. Rb1 $18 (27. bxc5 $2 Qb2#) (27. bxc5 $2 Qb2#)) (26... Rc7 27. Bg3 (27. bxa5 $2 Qb2#) 27... axb4) 27. Rb1 $1 {[%emt 0:01:37]} (27. Qxd7 $2 b3+ 28. Kc1 exf4 $19) 27... Kc7 {[%emt 0:00:29]} 28. Rxb4 {[%emt 0:00:22]} Qa5 {[%emt 0:00:13]} 29. Bg5 {[%emt 0:03:27]} (29. Rxd4 Qxa4+ 30. Rxa4 exf4 $18) 29... Rg8 {[%emt 0:00:54] [#]} 30. h6 $1 {[%emt 0:01:04]} Rxg5 {[%emt 0:00:36]} 31. h7 {[%emt 0:00:59]} Rxg2+ {[%emt 0:00:02]} 32. Kc1 {[%emt 0:00:22]} Ra2 {[%emt 0:00:59]} 33. Qxa5+ {[%emt 0:00:19]} (33. h8=Q $2 {too greedy.} Rxa4 34. Kd1 Qxb4 $19) 33... Rcxa5 {[%emt 0:00:19]} 34. h8=Q {[%emt 0:00:20] White threatens Qe8 and mate.} ({Not} 34. h8=R Nc5 35. Bb1 Rf2 $11) 34... Rd2 {[%emt 0:00:40]} 35. Bb1 {[%emt 0:01:12]} (35. Rc4+ $142 Rc5 36. Qg8 Rxc4 37. Qxf7 Rg2 38. Bxc4 Kc6 39. Qd5+ Kc7 40. Rh7) 35... Rc5 {[%emt 0:00:33]} 36. Qa8 {[%emt 0:00:17] White mates.} d3 {[%emt 0:00:26]} 37. Rb7+ {[%emt 0:00:34]} Kd6 {[%emt 0:00:05]} 38. Qd8 {[%emt 0:00:16] Excellently played by Erenberg!   Weighted Error Value: White=0.45/Black=1.03} 1-0

[Event "Israeli Team-ch 2023"]
[Site "Petah Tikva"]
[Date "2023.02.03"]
[Round "5.4"]
[White "Steiner-Prozhanski, Giora"]
[Black "Mindlin, Alon"]
[Result "1/2-1/2"]
[ECO "E33"]
[WhiteElo "2254"]
[BlackElo "2432"]
[Annotator "TA"]
[PlyCount "58"]
[EventDate "2023.01.13"]
[EventCountry "ISR"]
[SourceTitle "playchess.com"]
[Source "ChessBase"]
[SourceQuality "1"]
[TimeControl "40/5400+30:1800+30"]

{[%evp 15,58,40,55,34,32,41,31,24,31,22,33,26,39,35,33,19,38,8,8,8,16,10,37,36,27,26,54,49,63,68,58,0,0,0,0,0,0,-4,-5,-11,-12,-19,0,0,0]} 1. d4 {[%emt 0:01:01]} Nf6 {[%emt 0:00:17]} 2. c4 {[%emt 0:00:03]} e6 {[%emt 0:00:55]} 3. Nc3 {[%emt 0:00:00]} Bb4 {[%emt 1:30:48]} 4. Qc2 {[%emt 1:31:26]} Nc6 {[%emt 0:00:00]} 5. Nf3 {[%emt 0:00:30]} d6 {[%emt 0:00:00]} 6. Bd2 {[%emt 0:00:00]} O-O {[%emt 0:00:00]} 7. a3 {[%emt 0:00:00]} Bxc3 {[%emt 0:00:00]} 8. Bxc3 {[%emt 0:00:00]} Qe7 {[%emt 0:00:00]} 9. e4 {[%emt 0:00:00] E33: Nimzo-Indian: Classical: 4...Nc6.} e5 {[%emt 0:00:00]} 10. d5 {[%emt 0:00:00]} Nb8 {[%emt 0:00:00]} 11. Be2 {[%emt 0:00:00] White is slightly better.} a5 {[%emt 0:00:00]} 12. O-O {[%emt 0:00:00]} a4 {[%emt 0:00:00]} 13. c5 {[%emt 0:00:00]} Bg4 {[%emt 0:00:00]} 14. cxd6 {[%emt 0:00:00]} cxd6 {[%emt 0:00:00] [#]} 15. Rfe1 $146 {[%emt 0:00:00]} ({Predecessor:} 15. Ne1 Bxe2 16. Qxe2 Na6 17. Nd3 Rac8 18. f3 Nd7 {½-½ Portisch,L (2600)-Tal,M (2585) World Cup Skelleftea 1989 (11)}) 15... Nbd7 {[%emt 0:00:00]} 16. Nd2 {[%emt 0:00:00]} Bxe2 {[%emt 0:00:00]} 17. Rxe2 {[%emt 0:00:00]} Rfc8 {[%emt 0:00:00]} 18. Re3 {[%emt 0:00:00]} Nh5 {[%emt 0:00:00]} 19. Qd1 {[%emt 0:00:00]} g6 {[%emt 0:00:00]} 20. Bb4 {[%emt 0:00:00]} b5 {[%emt 0:00:00]} 21. Rc1 {[%emt 0:00:00]} Rxc1 {[%emt 0:00:00]} 22. Qxc1 {[%emt 0:00:00] Strongly threatening Qc6.} Nc5 {[%emt 0:00:00]} 23. Bxc5 {[%emt 0:00:00]} ({White should play} 23. Rc3 $14) 23... Rc8 $11 {[%emt 0:00:00][%mdl 64] [#] Pin. The position is equal.} 24. g3 {[%emt 0:00:00]} Nf6 {[%emt 0:00:00]} 25. Rc3 {[%emt 0:00:00]} dxc5 {[%emt 0:00:00]} 26. Qf1 {[%emt 0:00:00]} c4 {[%emt 0:00:00]} 27. Qc1 {[%emt 0:00:00]} Qc5 {[%emt 0:00:00]} 28. Rf3 {[%emt 0:00:00]} Ne8 {[%emt 0:00:00]} 29. Nb1 {[%emt 0:00:00]} Kg7 {[%emt 0:00:00] Weighted Error Value: White=0.08 (flawless) /Black=0.07 (flawless)} 1/2-1/2

[Event "Israeli Team-ch 2023"]
[Site "Petah Tikva"]
[Date "2023.02.03"]
[Round "5.5"]
[White "Raznikov, Danny"]
[Black "Poleg, Dan"]
[Result "1-0"]
[ECO "D28"]
[WhiteElo "2482"]
[BlackElo "2193"]
[Annotator "TA"]
[PlyCount "75"]
[EventDate "2023.01.13"]
[EventCountry "ISR"]
[SourceTitle "playchess.com"]
[Source "ChessBase"]
[SourceQuality "1"]
[TimeControl "40/5400+30:1800+30"]

{[%evp 20,75,21,0,4,0,0,0,0,0,26,24,4,12,0,13,67,40,65,34,39,41,39,39,52,43,68,64,98,89,91,85,102,102,135,129,285,170,762,753,762,765,760,749,733,687,694,687,929,906,885,866,851,848,822,699,720,700]} 1. d4 {[%emt 0:00:55]} d5 {[%emt 0:01:09]} 2. c4 {[%emt 0:01:09]} dxc4 {[%emt 0:00:33]} 3. e3 {[%emt 0:00:26]} Nf6 {[%emt 0:00:15]} 4. Bxc4 {[%emt 0:00:13]} e6 {[%emt 0:00:10]} 5. Nf3 {[%emt 0:01:00]} a6 {[%emt 0:00:57]} 6. O-O {[%emt 0:02:18]} c5 {[%emt 0:02:24]} 7. Qe2 {[%emt 0:02:56]} Nc6 {[%emt 0:01:26]} 8. dxc5 {[%emt 0:04:13]} Bxc5 {[%emt 0:00:30]} 9. a3 {[%emt 0:01:51]} O-O {[%emt 0:08:03]} 10. b4 {[%emt 0:01:19]} Bd6 {[%emt 0:01:50]} 11. Bb2 {[%emt 0:15:52]} e5 {[%emt 0:06:16] And now ...e4 would win. D28: Queen's Gambit Accepted: Classical main line: 7 Qe2 with early ...Nc6.} 12. e4 {[%emt 0:05:50]} Bg4 {[%emt 0:13:04]} 13. Nbd2 {[%emt 0:04:49]} Qe7 {[%emt 0:01:18] The position is equal.} 14. h3 {[%emt 0:04:43]} Bh5 {[%emt 0:04:51] [#]} 15. Rfe1 $146 {[%emt 0:05:10]} ({Predecessor:} 15. Qe3 Rfe8 16. Rfe1 Rad8 17. g4 Bg6 18. Qg5 Bb8 19. Rad1 b5 20. Ba2 Ba7 21. Kg2 {0-1 Jaeger,A (2051)-Petersen,S (2262) Berlin Lichtenberger op 9th 2010 (2)}) 15... Rac8 {[%emt 0:15:04]} 16. Bb3 {[%emt 0:06:16]} b5 {[%emt 0:02:48]} (16... Nd4 $2 17. Bxd4 exd4 18. e5 $18) 17. Rac1 {[%emt 0:05:22]} Rc7 {[%emt 0:01:56]} (17... Nd4 $2 18. Bxd4 Rxc1 19. Rxc1 $18) (17... Bb8 $11) 18. Qe3 $14 {[%emt 0:02:16]} a5 {[%emt 0:05:20]} 19. Nh4 {[%emt 0:05:15] White is more active.} Bg6 {[%emt 0:08:00]} 20. Nxg6 {[%emt 0:00:39]} (20. bxa5 {is more complex.} Nxa5 21. Rxc7 Qxc7 22. Nxg6 hxg6 23. Rc1) 20... hxg6 {[%emt 0:00:04]} 21. bxa5 {[%emt 0:02:50]} Nxa5 {[%emt 0:00:07]} 22. Rxc7 {[%emt 0:01:25]} Bxc7 {[%emt 0:01:34]} 23. Ba2 {[%emt 0:00:47]} Nd7 {[%emt 0:00:24]} 24. Rc1 {[%emt 0:02:25]} Bb6 {[%emt 0:02:10]} 25. Qd3 {[%emt 0:04:36]} Rb8 {[%emt 0:00:33]} 26. Rc2 {[%emt 0:02:52]} (26. Qxb5 $2 Bxf2+ 27. Kxf2 Rxb5 $19) 26... Kh7 {[%emt 0:10:41]} 27. Qg3 {[%emt 0:03:07]} (27. Qxb5 $2 Bxf2+ 28. Kxf2 Rxb5 $19) 27... Bc5 $2 {[%emt 0:04:45] This costs Black the game.} (27... Nc4 $16 {keeps fighting.}) 28. Bd5 {[%emt 0:03:47]} (28. Nf3 $142 Nc4 29. a4) 28... Bd6 $2 {[%emt 0:07:16]} (28... Nc4 29. Nf3 Rf8) 29. Nf3 $18 {[%emt 0:00:58] White is clearly winning.} Rf8 {[%emt 0:00:05]} 30. Ng5+ {[%emt 0:01:01]} Kg8 {[%emt 0:00:06]} 31. Qh4 {[%emt 0:06:48][%csl Gg5][%cal Rh4h7]} Nf6 {[%emt 0:00:08] Against Qh7+} 32. Rc3 {[%emt 0:00:26][%cal Bc2c3,Bc3f3,Bf3d3,Bd3d2][%mdl 32]} Nc4 {[%emt 0:01:31] [#]} 33. Rf3 $1 {[%emt 0:00:33][%cal Of3f6] White threatens Rxf6! and mate.} Nh5 {[%emt 0:00:27]} (33... Rd8 34. Bc1) 34. g4 {[%emt 0:01:07]} Nd2 {[%emt 0:01:09]} 35. Rd3 {[%emt 0:00:33]} (35. Rxf7 Rxf7 36. gxh5 (36. Bxf7+ Kf8 $16) 36... Qxg5+ 37. Qxg5 Nf3+ 38. Kg2 Nxg5 $18) 35... Qxg5 {[%emt 0:00:27]} 36. Qxg5 {[%emt 0:00:13]} Nf4 {[%emt 0:00:02] [#]} 37. Qxf4 $3 {[%emt 0:00:46][%mdl 512]} exf4 {[%emt 0:00:17]} 38. Rxd2 {[%emt 0:00:04] Excellently played by Raznikov!   Weighted Error Value: White=0.17 (very precise) /Black=0.26 (precise)} 1-0

[Event "Israeli Team-ch 2023"]
[Site "Petah Tikva"]
[Date "2023.02.03"]
[Round "5.6"]
[White "Lurie, Michael"]
[Black "Milikow, Yoav"]
[Result "0-1"]
[ECO "A06"]
[WhiteElo "2295"]
[BlackElo "2416"]
[Annotator "TA"]
[PlyCount "80"]
[EventDate "2023.01.13"]
[EventCountry "ISR"]
[SourceTitle "playchess.com"]
[Source "ChessBase"]
[SourceQuality "1"]
[TimeControl "40/5400+30:1800+30"]

{[%evp 9,80,-8,6,4,3,0,9,-6,56,45,71,52,78,77,101,83,140,135,181,85,83,85,102,108,147,142,197,184,210,216,508,491,584,440,411,397,376,388,387,131,134,130,120,135,127,117,163,92,89,36,89,83,71,79,119,127,145,135,168,27,43,-358,-351,-360,-340,-502,-502,-488,-477,-486,-481,-750,-733]} 1. Nf3 {[%emt 0:00:02]} d5 {[%emt 0:01:47]} 2. b3 {[%emt 0:00:02]} c5 {[%emt 0:03:17]} 3. e3 {[%emt 0:00:07]} Nf6 {[%emt 0:01:07]} 4. Bb2 {[%emt 0:00:07]} e6 {[%emt 0:01:21]} 5. g3 {[%emt 0:01:58]} Nc6 {[%emt 0:03:03]} 6. Bg2 {[%emt 0:00:09] A06: Réti Opening: 1 Nf3 d5.} Qc7 {[%emt 0:12:51]} 7. c4 {[%emt 0:05:04] [#]} dxc4 $146 {[%emt 0:03:22]} ({Predecessor:} 7... Bd7 8. O-O dxc4 9. bxc4 Bd6 10. Nc3 a6 11. Rb1 Na5 12. Qe2 Bc6 13. d4 cxd4 14. exd4 Bxf3 15. Qxf3 Nxc4 {0-1 Bailey,J-Gabbara,F Detroit Clippert op 1994}) 8. bxc4 {[%emt 0:00:18] The position is equal.} e5 {[%emt 0:02:20]} (8... Be7 $11) 9. O-O {[%emt 0:15:02]} Be6 {[%emt 0:02:26]} 10. Qa4 {[%emt 0:09:56]} Nd7 {[%emt 0:10:06]} 11. Ng5 {[%emt 0:04:48]} Bf5 {[%emt 0:04:55]} 12. Nc3 {[%emt 0:02:23] And now f4 would win.} h6 {[%emt 0:06:21]} (12... Be7 $142) 13. Nge4 {[%emt 0:16:43]} Be6 {[%emt 0:06:57]} (13... Bxe4 $16 14. Bxe4 Bd6) 14. Nb5 {[%emt 0:11:13]} (14. Nd5 $18 {and White stays clearly on top.} Qd8 15. f4) 14... Qb8 $16 {[%emt 0:00:13]} 15. d3 {[%emt 0:00:05]} a6 {[%emt 0:05:15]} 16. Nbc3 {[%emt 0:00:25][%cal Bb5c3,Bc3d5,Bd5f4][%mdl 32]} f5 {[%emt 0:02:30]} 17. Nd2 {[%emt 0:00:11]} Nb4 {[%emt 0:00:55] [#]} (17... Qd6 $16) 18. d4 $1 {[%emt 0:01:16][%mdl 512]} cxd4 {[%emt 0:02:34]} (18... exd4 $2 19. exd4 Kd8 20. Ne2 $18) (18... Bd6 19. d5) 19. exd4 {[%emt 0:01:02]} exd4 $2 {[%emt 0:00:32]} (19... Nd3 20. Qc2 Nxb2 21. Qxb2 (21. d5 Bf7 $11)) (19... a5 {was worth a try.} 20. dxe5 Nd3) 20. Nd5 $18 {[%emt 0:00:29]} Nc6 {[%emt 0:01:34]} 21. Nf4 {[%emt 0:03:36]} Nc5 {[%emt 0:00:23]} 22. Bxc6+ {[%emt 0:00:32]} Kf7 {[%emt 0:00:23]} 23. Qd1 {[%emt 0:00:18]} bxc6 {[%emt 0:00:06]} 24. Qh5+ $2 {[%emt 0:00:18]} (24. Bxd4 $18 {and the rest is easy.} Qc8 25. Re1) 24... Kg8 $16 {[%emt 0:00:06]} 25. Bxd4 {[%emt 0:04:07]} Qc8 {[%emt 0:03:30]} 26. Nxe6 {[%emt 0:05:58]} Qxe6 {[%emt 0:02:26]} 27. Rfe1 {[%emt 0:00:34]} Qf7 {[%emt 0:02:35]} (27... Ne4 $16) 28. Qf3 {[%emt 0:01:25]} ({Better is} 28. Qxf7+ $18 Kxf7 29. Nf3 (29. Re5 Ne6 $16)) 28... Rd8 {[%emt 0:03:58]} 29. Qe3 {[%emt 0:04:13]} ({White should try} 29. Bxc5 $1 $16 Bxc5 30. Red1) 29... f4 {[%emt 0:04:03]} 30. gxf4 {[%emt 0:00:09][%cal Bg3f4,Bf4f5][%mdl 32]} Ne6 {[%emt 0:04:03][%mdl 64] Double Attack} 31. Bb6 {[%emt 0:02:01][%cal Ob6d8]} ({But not} 31. Qxe6 Rxd4 32. Nb3 Rxf4 $11) 31... Re8 {[%emt 0:00:49][%cal Bd8e8,Be8e7,Be7d7,Bd7d6][%mdl 32]} 32. Qe4 {[%emt 0:01:53] f5 would be deadly.} Re7 {[%emt 0:01:39]} 33. f5 {[%emt 0:02:54]} Ng5 {[%emt 0:01:59] [#]} 34. Qxc6 {[%emt 0:00:42]} ({White must play} 34. Qg4 $1 $18) 34... Rd7 $11 {[%emt 0:00:32]} 35. Nf3 {[%emt 0:03:38][%mdl 8192] [#] This move loses the game for White.} (35. Be3 $1 $14 {stays ahead.}) 35... Rd6 $1 $19 {[%emt 0:00:44][%mdl 64] Skewer} 36. Nxg5 {[%emt 0:03:26]} hxg5 {[%emt 0:00:26]} 37. Qc7 {[%emt 0:00:12]} ({Much weaker is} 37. Qc5 Rxh2 38. Qe5 Rh4 $19) (37. Qe8 {was called for.} Rxb6 38. c5) 37... Qh5 {[%emt 0:00:11] Black is clearly winning.} 38. Qb7 {[%emt 0:01:30]} Qxh2+ {[%emt 0:00:12]} 39. Kf1 {[%emt 0:00:02]} Qh3+ {[%emt 0:00:58]} 40. Kg1 {[%emt 0:00:34]} (40. Qg2 $142 Rxb6 41. Qxh3 Rxh3 42. Rac1) 40... Rh4 {[%emt 0:08:01] Weighted Error Value: White=0.62/Black=0.31} 0-1

[Event "Israeli Team-ch 2023"]
[Site "Petah Tikva"]
[Date "2023.02.03"]
[Round "5.7"]
[White "Kupervaser, Erez"]
[Black "Nabaty, Tamir"]
[Result "1/2-1/2"]
[ECO "B12"]
[WhiteElo "2293"]
[BlackElo "2632"]
[Annotator "TA"]
[PlyCount "109"]
[EventDate "2023.01.13"]
[EventCountry "ISR"]
[SourceTitle "playchess.com"]
[Source "ChessBase"]
[SourceQuality "1"]
[TimeControl "40/5400+30:1800+30"]

{[%evp 9,109,16,20,18,12,0,0,6,25,-6,-16,-14,0,0,0,0,0,-8,-10,-6,-16,-52,-47,-112,-101,-149,-147,-162,-152,-156,-172,-166,-165,-164,-164,-153,-146,-113,-87,-85,-87,-87,-60,-54,-18,-18,-18,-18,-18,-18,-18,-18,-18,-18,-18,-18,-18,-20,-20,-20,-20,-72,-72,-72,-72,-72,-72,-81,-84,-113,-113,-113,-113,-113,-113,-113,-113,-113,-113,-113,-113,-113,-113,-113,0,0,0,0,0,-7,0,0,0,0,0,0,0,0,0,0,0,-8]} 1. e4 {[%emt 1:31:00]} c6 {[%emt 0:00:06]} 2. d4 {[%emt 0:00:00]} d5 {[%emt 0:00:10]} 3. e5 {[%emt 0:00:00]} c5 {[%emt 0:00:09]} 4. dxc5 {[%emt 0:00:00]} e6 {[%emt 0:00:10]} 5. Nf3 {[%emt 0:00:00]} Bxc5 {[%emt 0:00:10]} 6. a3 {[%emt 0:00:00] B12: Caro-Kann: Advance Variation.} Ne7 {[%emt 0:00:23]} 7. Bd3 {[%emt 0:00:00]} (7. b4 $5 Bb6 $8 8. Bb2 $11) 7... Ng6 {[%emt 0:00:39]} 8. O-O {[%emt 0:00:00]} O-O {[%emt 0:01:01]} 9. Qe2 {[%emt 0:00:00]} (9. Ng5 $5 {[%cal Rd1h5]}) 9... Nc6 {[%emt 0:01:32]} 10. b4 {[%emt 0:00:00]} Nd4 {[%emt 0:09:41]} 11. Nxd4 {[%emt 0:00:00]} Bxd4 {[%emt 0:00:03]} 12. c3 {[%emt 0:00:00]} Bb6 {[%emt 0:00:05] [#]} (12... Bxe5 13. Bxg6 Bxh2+ 14. Kxh2 $16) 13. Be3 $146 {[%emt 0:00:00]} ({Predecessor:} 13. Bxg6 fxg6 14. Nd2 Qh4 15. Nf3 Qh5 16. Be3 Bd7 17. Bxb6 axb6 18. Qe3 h6 19. Rfe1 {0-1 Yi,R (2130)-Rozman,L (2362) Titled Tuesday intern op 12th Oct blitz 2021 (4)}) 13... Bd7 {[%emt 0:06:12]} (13... Nxe5 $2 14. Bxb6 axb6 15. Qxe5 $18) 14. Nd2 {[%emt 0:00:00]} Qc7 $36 {[%emt 0:07:40][%mdl 2048] Black has the initiative.} 15. Bd4 {[%emt 0:00:00]} Nf4 {[%emt 0:06:05]} 16. Qe3 {[%emt 0:00:00]} ({White should try} 16. Qf3 $15 Bxd4 17. cxd4 Nxd3 18. Qxd3) 16... Qxc3 $1 $17 {[%emt 0:03:19][%mdl 64] Double Attack} (16... Nxd3 $6 17. Qxd3 Bxd4 18. Qxd4 $11 (18. cxd4 Rac8 $15)) 17. Bxb6 {[%emt 0:00:00]} (17. Bxc3 $142 Bxe3 18. fxe3 (18. Bxh7+ $2 Kxh7 19. fxe3 Ne2+ 20. Kh1 Nxc3 $19) 18... Nxd3 19. Bd4) 17... Qxd3 {[%emt 0:01:58]} ({Weaker is} 17... Nxd3 18. Bd4 Qc2 19. Nf3 $15) 18. Bxa7 {[%emt 0:00:00] White is weak on the light squares} Ne2+ {[%emt 0:13:46]} 19. Kh1 {[%emt 0:00:00]} Qxe3 {[%emt 0:00:09]} 20. Bxe3 {[%emt 0:00:00]} d4 {[%emt 0:00:10]} 21. Bg5 {[%emt 0:00:00]} Rfc8 $1 {[%emt 0:00:06] Prevents Nc4.} 22. Nf3 {[%emt 0:00:00]} Rc3 {[%emt 0:07:38]} 23. Rfd1 {[%emt 0:00:00]} Rcxa3 {[%emt 0:02:54]} 24. Rxa3 {[%emt 0:00:00]} Rxa3 {[%emt 0:00:03]} 25. Nxd4 {[%emt 0:00:00]} Nxd4 {[%emt 0:03:50]} 26. h4 {[%emt 0:00:00]} h6 {[%emt 0:23:25]} (26... Nc6 $5 27. Rxd7 h6 $15) 27. Rxd4 {[%emt 0:02:27]} hxg5 {[%emt 0:00:09]} 28. Rxd7 {[%emt 0:00:04]} gxh4 {[%emt 0:00:08]} 29. Rxb7 $11 {[%emt 0:00:09][%mdl 4096] Endgame KR-KR} g5 {[%emt 0:00:07]} 30. Kh2 {[%emt 0:02:38]} Kg7 {[%emt 0:01:21]} 31. f3 {[%emt 0:03:20]} Kg6 {[%emt 0:02:20]} 32. Kh3 {[%emt 0:02:56]} Rd3 {[%emt 0:01:43]} 33. Rb8 {[%emt 0:01:53]} Rd5 {[%emt 0:00:57]} 34. Rg8+ $1 {[%emt 0:02:08]} Kh6 {[%emt 0:00:02]} 35. f4 {[%emt 0:00:48]} Rd3+ $17 {[%emt 0:03:45]} 36. Kh2 {[%emt 0:00:01]} gxf4 {[%emt 0:00:07]} 37. Rg4 {[%emt 0:00:23] [#]} Rd4 $1 {[%emt 0:00:41]} 38. b5 {[%emt 0:00:16][%cal Oh2h3]} Rb4 {[%emt 0:01:53]} 39. Kh3 {[%emt 0:01:09]} Rxb5 {[%emt 0:02:16]} 40. Rxf4 {[%emt 0:00:36] [#]} Kg6 $1 {[%emt 0:00:15]} ({Much worse is} 40... Rxe5 $6 41. Rxf7 Re4 42. g4 $11) 41. Rf6+ {[%emt 0:30:37]} Kg7 {[%emt 0:30:15]} 42. Kxh4 {[%emt 0:00:10]} Rxe5 {[%emt 0:00:07]} 43. Rf4 {[%emt 0:00:00]} Re3 {[%emt 0:00:00]} 44. g4 {[%emt 0:00:00]} f6 {[%emt 0:00:00]} 45. Ra4 {[%emt 0:00:00]} Kg6 {[%emt 0:00:00]} 46. Ra8 {[%emt 0:00:00]} f5 {[%emt 0:00:00]} (46... Re4 $17 {And now ...f5 would win.} 47. Kg3 Re3+ 48. Kh4 Re4) 47. gxf5+ $11 {[%emt 0:00:00] The position is equal.} Kxf5 {[%emt 0:00:00]} 48. Rf8+ {[%emt 0:00:00]} Ke4 {[%emt 0:00:00]} 49. Kg4 {[%emt 0:00:00]} e5 {[%emt 0:00:00]} 50. Ra8 {[%emt 0:00:00]} Rb3 {[%emt 0:00:00]} 51. Ra4+ {[%emt 0:00:00]} Kd5 {[%emt 0:00:00]} 52. Ra5+ {[%emt 0:00:00]} Kd4 {[%emt 0:00:00]} 53. Ra4+ {[%emt 0:00:00]} Kd5 {[%emt 0:00:00]} 54. Ra5+ {[%emt 0:00:00]} Kd4 {[%emt 0:00:00]} 55. Ra4+ {[%emt 0:00:00] Black had all chances to win.   Weighted Error Value: White=0.09 (flawless) /Black=0.04 (flawless)} 1/2-1/2